[Event "Early-Titled-Tuesday-Blitz-March-19-2024"]
[Site "Chess.com"]
[Date "2024.03.19"]
[Round "4"]
[White "santosalberto1987"]
[Black "js20000"]
[Result "0-1"]
[WhiteElo "2564"]
[BlackElo "2792"]
[TimeControl "180+1"]
[EndTime "8:40:40 PDT"]
[Termination "js20000 won on time"]

1. e4 {[%clk 0:03:00.1]} 1... c6 {[%clk 0:02:57.1]} 2. c4 {[%clk 0:02:59.6]}
2... e6 {[%clk 0:02:55.1]} 3. d4 {[%clk 0:02:55.1]} 3... d5 {[%clk 0:02:54.9]}
4. Nc3 {[%clk 0:02:53.1]} 4... Bb4 {[%clk 0:02:54]} 5. cxd5 {[%clk 0:02:44.7]}
5... exd5 {[%clk 0:02:52]} 6. e5 {[%clk 0:02:44.5]} 6... Bf5 {[%clk 0:02:50.5]}
7. Bd3 {[%clk 0:02:40.9]} 7... Ne7 {[%clk 0:02:49.3]} 8. f4 {[%clk 0:02:27.5]}
8... Qa5 {[%clk 0:02:40.3]} 9. Qc2 {[%clk 0:02:18.3]} 9... Bxd3 {[%clk
0:02:23.2]} 10. Qxd3 {[%clk 0:02:19.2]} 10... Qa6 {[%clk 0:02:23.5]} 11. Qxa6
{[%clk 0:02:17.4]} 11... Nxa6 {[%clk 0:02:24.4]} 12. Nf3 {[%clk 0:02:16.1]}
12... h5 {[%clk 0:02:24]} 13. Be3 {[%clk 0:02:04.8]} 13... Nf5 {[%clk
0:02:19.6]} 14. Bf2 {[%clk 0:02:05]} 14... Nc7 {[%clk 0:02:19.3]} 15. a3 {[%clk
0:01:49.6]} 15... Ba5 {[%clk 0:02:15]} 16. g3 {[%clk 0:01:46.9]} 16... Nb5
{[%clk 0:02:09.5]} 17. Kd2 {[%clk 0:01:38.3]} 17... c5 {[%clk 0:01:47.1]} 18. b4
{[%clk 0:01:28.9]} 18... Nxc3 {[%clk 0:01:45.7]} 19. Kxc3 {[%clk 0:01:27.7]}
19... cxb4+ {[%clk 0:01:40.8]} 20. axb4 {[%clk 0:01:27.7]} 20... Bb6 {[%clk
0:01:38.1]} 21. Kd3 {[%clk 0:01:17.8]} 21... Rc8 {[%clk 0:01:36.9]} 22. Rhc1
{[%clk 0:01:16.1]} 22... Kd7 {[%clk 0:01:33.4]} 23. h3 {[%clk 0:01:04.3]} 23...
f6 {[%clk 0:01:31.8]} 24. Rxc8 {[%clk 0:00:58.4]} 24... Rxc8 {[%clk 0:01:30.3]}
25. g4 {[%clk 0:00:58.5]} 25... hxg4 {[%clk 0:01:30]} 26. hxg4 {[%clk
0:00:58.6]} 26... Nh6 {[%clk 0:01:30.9]} 27. exf6 {[%clk 0:00:46.9]} 27... Nxg4
{[%clk 0:01:28.2]} 28. Ne5+ {[%clk 0:00:46.8]} 28... Nxe5+ {[%clk 0:01:27.3]}
29. fxe5 {[%clk 0:00:47.3]} 29... gxf6 {[%clk 0:01:27.4]} 30. exf6 {[%clk
0:00:46.9]} 30... Ke6 {[%clk 0:01:26.1]} 31. Re1+ {[%clk 0:00:33.2]} 31... Kxf6
{[%clk 0:01:25.4]} 32. Re5 {[%clk 0:00:32.9]} 32... Rc4 {[%clk 0:01:21]} 33. b5
{[%clk 0:00:29.9]} 33... Rb4 {[%clk 0:01:16.5]} 34. Rxd5 {[%clk 0:00:29.3]}
34... Ke6 {[%clk 0:01:09.8]} 35. Rh5 {[%clk 0:00:23.9]} 35... Kd7 {[%clk
0:01:03.7]} 36. Rh7+ {[%clk 0:00:19.9]} 36... Kc8 {[%clk 0:01:03.6]} 37. Rh8+
{[%clk 0:00:19.7]} 37... Kd7 {[%clk 0:01:03.1]} 38. Rh7+ {[%clk 0:00:19.9]}
38... Ke6 {[%clk 0:01:01.8]} 39. Rh6+ {[%clk 0:00:18.4]} 39... Kf5 {[%clk
0:00:59.8]} 40. Rh5+ {[%clk 0:00:18.6]} 40... Kg4 {[%clk 0:00:59.3]} 41. Rd5
{[%clk 0:00:18.2]} 41... Kf3 {[%clk 0:00:58.7]} 42. Rf5+ {[%clk 0:00:16.8]}
42... Kg4 {[%clk 0:00:57.9]} 43. Rd5 {[%clk 0:00:16.9]} 43... Rb3+ {[%clk
0:00:57.7]} 44. Kc4 {[%clk 0:00:16.8]} 44... Rf3 {[%clk 0:00:54.5]} 45. Be1
{[%clk 0:00:17.1]} 45... Rf1 {[%clk 0:00:53.7]} 46. Bb4 {[%clk 0:00:17]} 46...
Rc1+ {[%clk 0:00:53.6]} 47. Kd3 {[%clk 0:00:17.2]} 47... Rd1+ {[%clk 0:00:49.9]}
48. Ke4 {[%clk 0:00:16.9]} 48... Rb1 {[%clk 0:00:46.7]} 49. Bc5 {[%clk
0:00:16.8]} 49... Rxb5 {[%clk 0:00:45.8]} 50. Bxb6 {[%clk 0:00:16.9]} 50... Rxb6
{[%clk 0:00:43.8]} 51. Rd7 {[%clk 0:00:17.4]} 51... a5 {[%clk 0:00:43.3]} 52.
Rg7+ {[%clk 0:00:17.4]} 52... Kh5 {[%clk 0:00:43]} 53. d5 {[%clk 0:00:16.9]}
53... a4 {[%clk 0:00:42.4]} 54. Ke5 {[%clk 0:00:16.7]} 54... a3 {[%clk
0:00:41.8]} 55. Rg1 {[%clk 0:00:14.4]} 55... Ra6 {[%clk 0:00:35.2]} 56. d6
{[%clk 0:00:13.8]} 56... Ra8 {[%clk 0:00:34.3]} 57. d7 {[%clk 0:00:12.9]} 57...
b5 {[%clk 0:00:34.4]} 58. Rb1 {[%clk 0:00:09]} 58... b4 {[%clk 0:00:31.4]} 59.
Kd4 {[%clk 0:00:03.1]} 59... b3 {[%clk 0:00:27.3]} 60. Kc3 {[%clk 0:00:02.9]}
60... b2 {[%clk 0:00:25.8]} 0-1

[Event "Early-Titled-Tuesday-Blitz-March-19-2024"]
[Site "Chess.com"]
[Date "2024.03.19"]
[Round "4"]
[White "suyu28"]
[Black "rhungaski"]
[Result "1-0"]
[WhiteElo "2852"]
[BlackElo "2609"]
[TimeControl "180+1"]
[EndTime "8:40:41 PDT"]
[Termination "suyu28 won by resignation"]

1. d4 {[%clk 0:03:00.9]} 1... Nf6 {[%clk 0:02:58.7]} 2. c4 {[%clk 0:03:00.9]}
2... e5 {[%clk 0:02:58.8]} 3. dxe5 {[%clk 0:03:00.4]} 3... Ng4 {[%clk
0:02:58.1]} 4. Nf3 {[%clk 0:03:00.8]} 4... Bc5 {[%clk 0:02:56.3]} 5. e3 {[%clk
0:03:00.3]} 5... Nc6 {[%clk 0:02:55.3]} 6. Nc3 {[%clk 0:02:48.5]} 6... O-O
{[%clk 0:02:53.3]} 7. Be2 {[%clk 0:02:42.2]} 7... Re8 {[%clk 0:02:51.9]} 8. Nd5
{[%clk 0:02:33.2]} 8... Ncxe5 {[%clk 0:02:43.3]} 9. Nxe5 {[%clk 0:02:31]} 9...
Nxe5 {[%clk 0:02:42.8]} 10. b4 {[%clk 0:02:25.3]} 10... Bf8 {[%clk 0:02:41.7]}
11. a3 {[%clk 0:02:24.1]} 11... a5 {[%clk 0:02:36.7]} 12. Rb1 {[%clk 0:02:21.7]}
12... c6 {[%clk 0:02:33.6]} 13. Nf4 {[%clk 0:02:20.9]} 13... axb4 {[%clk
0:02:32.6]} 14. axb4 {[%clk 0:02:20.8]} 14... d5 {[%clk 0:01:59.7]} 15. cxd5
{[%clk 0:02:16.2]} 15... Bf5 {[%clk 0:02:00.2]} 16. Rb2 {[%clk 0:02:11.1]} 16...
Qf6 {[%clk 0:01:37.3]} 17. O-O {[%clk 0:01:56.2]} 17... Ra1 {[%clk 0:01:24.5]}
18. Qb3 {[%clk 0:01:50.3]} 18... cxd5 {[%clk 0:00:37]} 19. Rd2 {[%clk
0:01:37.5]} 19... d4 {[%clk 0:00:20.5]} 20. exd4 {[%clk 0:01:15.2]} 20... Nc6
{[%clk 0:00:21.1]} 21. Nd5 {[%clk 0:01:15.4]} 21... Qd6 {[%clk 0:00:18.6]} 22.
Ne3 {[%clk 0:00:50.1]} 22... Bg6 {[%clk 0:00:13.8]} 23. Bb2 {[%clk 0:00:34.6]}
23... Rxf1+ {[%clk 0:00:13.3]} 24. Bxf1 {[%clk 0:00:35.5]} 24... Qxb4 {[%clk
0:00:13.9]} 25. Qd1 {[%clk 0:00:31.3]} 25... Rd8 {[%clk 0:00:11.9]} 26. d5
{[%clk 0:00:30.9]} 26... Ne7 {[%clk 0:00:09.6]} 27. d6 {[%clk 0:00:13.8]} 27...
Nf5 {[%clk 0:00:09.8]} 28. Nxf5 {[%clk 0:00:13.6]} 28... Bxf5 {[%clk 0:00:10.7]}
29. Be5 {[%clk 0:00:13.3]} 29... f6 {[%clk 0:00:09]} 30. Bg3 {[%clk 0:00:13.1]}
30... Be6 {[%clk 0:00:09.2]} 31. h4 {[%clk 0:00:12.1]} 31... Rd7 {[%clk
0:00:09.4]} 32. h5 {[%clk 0:00:12.4]} 32... h6 {[%clk 0:00:09.7]} 33. Rd4 {[%clk
0:00:10.7]} 33... Qc5 {[%clk 0:00:09.5]} 34. Be2 {[%clk 0:00:09.2]} 34... Bf7
{[%clk 0:00:06.9]} 35. Bg4 {[%clk 0:00:08.5]} 35... f5 {[%clk 0:00:07.3]} 36.
Bf3 {[%clk 0:00:08.1]} 36... Be6 {[%clk 0:00:07.3]} 37. Bf4 {[%clk 0:00:08.3]}
37... Kf7 {[%clk 0:00:07]} 38. Qd2 {[%clk 0:00:08.5]} 38... Qb5 {[%clk
0:00:06.9]} 39. Bd5 {[%clk 0:00:07.8]} 39... Bxd5 {[%clk 0:00:05.7]} 40. Rxd5
{[%clk 0:00:08.1]} 40... Qb1+ {[%clk 0:00:06.2]} 41. Kh2 {[%clk 0:00:07.4]}
41... Qe4 {[%clk 0:00:04]} 42. Rd4 {[%clk 0:00:06.5]} 42... Qe6 {[%clk 0:00:04]}
43. Qd3 {[%clk 0:00:06.6]} 43... Kg8 {[%clk 0:00:03.9]} 44. Rd5 {[%clk
0:00:06.9]} 44... b6 {[%clk 0:00:02.7]} 45. g3 {[%clk 0:00:07.2]} 45... Kh8
{[%clk 0:00:02.2]} 46. Rxf5 {[%clk 0:00:05.8]} 46... Bxd6 {[%clk 0:00:02.1]} 47.
Rd5 {[%clk 0:00:06]} 47... Bxf4 {[%clk 0:00:01.5]} 48. Rxd7 {[%clk 0:00:06.3]}
48... Bg5 {[%clk 0:00:02.4]} 49. Rb7 {[%clk 0:00:05.4]} 49... Qf6 {[%clk
0:00:02.2]} 50. Rb8+ {[%clk 0:00:05.4]} 1-0

[Event "Early-Titled-Tuesday-Blitz-March-19-2024"]
[Site "Chess.com"]
[Date "2024.03.19"]
[Round "4"]
[White "JoliyRoger"]
[Black "AlexanderKing"]
[Result "0-1"]
[WhiteElo "2433"]
[BlackElo "2622"]
[TimeControl "180+1"]
[EndTime "8:40:42 PDT"]
[Termination "AlexanderKing won on time"]

1. d4 {[%clk 0:02:55.3]} 1... d5 {[%clk 0:02:59.8]} 2. c4 {[%clk 0:02:55.7]}
2... e6 {[%clk 0:03:00.4]} 3. Nc3 {[%clk 0:02:54.9]} 3... c5 {[%clk 0:03:00.9]}
4. cxd5 {[%clk 0:02:54.7]} 4... exd5 {[%clk 0:03:01.8]} 5. e3 {[%clk 0:02:54.7]}
5... Nc6 {[%clk 0:03:02.3]} 6. Nf3 {[%clk 0:02:55.2]} 6... Nf6 {[%clk
0:03:02.8]} 7. Bb5 {[%clk 0:02:55.3]} 7... cxd4 {[%clk 0:03:03.4]} 8. Nxd4
{[%clk 0:02:55.8]} 8... Bd7 {[%clk 0:03:03.9]} 9. O-O {[%clk 0:02:56.3]} 9...
Bd6 {[%clk 0:03:04.6]} 10. b3 {[%clk 0:02:56.6]} 10... a6 {[%clk 0:03:03.7]} 11.
Bxc6 {[%clk 0:02:56.9]} 11... bxc6 {[%clk 0:03:04.6]} 12. Nce2 {[%clk
0:02:56.9]} 12... O-O {[%clk 0:02:45.1]} 13. Ng3 {[%clk 0:02:53.6]} 13... Re8
{[%clk 0:02:40.1]} 14. Bb2 {[%clk 0:02:54.1]} 14... Ne4 {[%clk 0:01:27.2]} 15.
Rc1 {[%clk 0:02:51.2]} 15... Rc8 {[%clk 0:01:12.8]} 16. Qd3 {[%clk 0:02:46.5]}
16... a5 {[%clk 0:01:01.1]} 17. Nf3 {[%clk 0:02:39]} 17... Qe7 {[%clk
0:00:49.2]} 18. Nd4 {[%clk 0:02:28.3]} 18... Qf6 {[%clk 0:00:36.2]} 19. Ba1
{[%clk 0:02:26]} 19... Qg6 {[%clk 0:00:30.6]} 20. Qc2 {[%clk 0:02:13.8]} 20...
h5 {[%clk 0:00:23.5]} 21. Nf3 {[%clk 0:01:55.9]} 21... Qg4 {[%clk 0:00:14]} 22.
Qb2 {[%clk 0:01:05.3]} 22... Re6 {[%clk 0:00:07.7]} 23. h3 {[%clk 0:01:01.3]}
23... Qg6 {[%clk 0:00:07.5]} 24. Nh4 {[%clk 0:00:41.8]} 24... Qh7 {[%clk
0:00:06.2]} 25. Nhf5 {[%clk 0:00:15.4]} 25... Be5 {[%clk 0:00:05.5]} 26. Qxe5
{[%clk 0:00:14.3]} 26... Rxe5 {[%clk 0:00:05.2]} 27. Bxe5 {[%clk 0:00:13]} 27...
Bxf5 {[%clk 0:00:05.3]} 28. Ne2 {[%clk 0:00:13.7]} 28... Re8 {[%clk 0:00:04.8]}
29. Ba1 {[%clk 0:00:10.9]} 29... Bd7 {[%clk 0:00:04.8]} 30. Kh2 {[%clk
0:00:10.8]} 30... Qg6 {[%clk 0:00:05]} 31. Nf4 {[%clk 0:00:11.2]} 31... Qd6
{[%clk 0:00:05.1]} 32. Kg1 {[%clk 0:00:11.8]} 32... h4 {[%clk 0:00:05.5]} 33.
Bd4 {[%clk 0:00:10.1]} 33... g5 {[%clk 0:00:04.8]} 34. Nd3 {[%clk 0:00:10.2]}
34... Bf5 {[%clk 0:00:02.9]} 35. Rfd1 {[%clk 0:00:07.7]} 35... Qg6 {[%clk
0:00:02.7]} 36. Ne1 {[%clk 0:00:07.1]} 36... Re6 {[%clk 0:00:03]} 37. Nf3 {[%clk
0:00:06.7]} 37... f6 {[%clk 0:00:02.9]} 38. b4 {[%clk 0:00:04.4]} 38... axb4
{[%clk 0:00:03.1]} 39. Rb1 {[%clk 0:00:04.7]} 39... Nc3 {[%clk 0:00:02.9]} 40.
Rxb4 {[%clk 0:00:02.3]} 40... Nxd1 {[%clk 0:00:03.4]} 41. Rb8+ {[%clk
0:00:03.2]} 41... Kf7 {[%clk 0:00:03.3]} 42. Bc5 {[%clk 0:00:03.8]} 42... Be4
{[%clk 0:00:02.5]} 43. Nd4 {[%clk 0:00:04.2]} 43... Qh5 {[%clk 0:00:01.7]} 44.
Rb7+ {[%clk 0:00:05.1]} 44... Kg6 {[%clk 0:00:01.4]} 45. Nxe6 {[%clk 0:00:05.3]}
45... Qe2 {[%clk 0:00:02]} 46. Nf8+ {[%clk 0:00:05.4]} 46... Kf5 {[%clk
0:00:02.3]} 0-1

[Event "Early-Titled-Tuesday-Blitz-March-19-2024"]
[Site "Chess.com"]
[Date "2024.03.19"]
[Round "4"]
[White "wild3000"]
[Black "Rurep26"]
[Result "0-1"]
[WhiteElo "2434"]
[BlackElo "2725"]
[TimeControl "180+1"]
[EndTime "8:40:43 PDT"]
[Termination "Rurep26 won by resignation"]

1. e4 {[%clk 0:03:00.9]} 1... e6 {[%clk 0:02:59.5]} 2. Nf3 {[%clk 0:02:58.7]}
2... d5 {[%clk 0:02:59.6]} 3. e5 {[%clk 0:02:57.1]} 3... c5 {[%clk 0:02:58.4]}
4. b4 {[%clk 0:02:57.1]} 4... b6 {[%clk 0:02:56.9]} 5. b5 {[%clk 0:02:56.9]}
5... d4 {[%clk 0:02:50.5]} 6. a4 {[%clk 0:02:55.6]} 6... Bb7 {[%clk 0:02:50]} 7.
Bd3 {[%clk 0:02:54.8]} 7... Nd7 {[%clk 0:02:48]} 8. Qe2 {[%clk 0:02:48.7]} 8...
Ne7 {[%clk 0:02:46.9]} 9. Na3 {[%clk 0:02:48]} 9... Ng6 {[%clk 0:02:46.4]} 10.
Nc4 {[%clk 0:02:47.5]} 10... Nf4 {[%clk 0:02:44.3]} 11. Qd1 {[%clk 0:02:43.3]}
11... Nxg2+ {[%clk 0:02:43.3]} 12. Kf1 {[%clk 0:02:43.3]} 12... Nh4 {[%clk
0:02:35]} 13. Be2 {[%clk 0:02:38.9]} 13... g5 {[%clk 0:02:30.9]} 14. Rg1 {[%clk
0:02:35.2]} 14... Nxf3 {[%clk 0:02:00.6]} 15. Bxf3 {[%clk 0:02:35]} 15... Qc7
{[%clk 0:02:01.5]} 16. d3 {[%clk 0:02:30.7]} 16... h6 {[%clk 0:02:00.1]} 17. a5
{[%clk 0:02:13.4]} 17... Bxf3 {[%clk 0:01:55.5]} 18. Qxf3 {[%clk 0:02:13.1]}
18... Rb8 {[%clk 0:01:53.6]} 19. axb6 {[%clk 0:02:09.5]} 19... axb6 {[%clk
0:01:54.5]} 20. Qc6 {[%clk 0:02:05.4]} 20... Kd8 {[%clk 0:01:36.2]} 21. f4
{[%clk 0:01:56.8]} 21... Be7 {[%clk 0:01:32.4]} 22. Ke2 {[%clk 0:01:48.6]} 22...
Nf8 {[%clk 0:01:22.7]} 23. Ra6 {[%clk 0:01:22]} 23... Qxc6 {[%clk 0:00:56.1]}
24. bxc6 {[%clk 0:01:22.9]} 24... Ng6 {[%clk 0:00:51.2]} 25. Nd6 {[%clk
0:01:19.9]} 25... Kc7 {[%clk 0:00:39]} 26. Nxf7 {[%clk 0:01:11.7]} 26... Rh7
{[%clk 0:00:38.8]} 27. Nd6 {[%clk 0:01:04.3]} 27... Kxc6 {[%clk 0:00:35.4]} 28.
Ra7 {[%clk 0:00:42.3]} 28... Rhh8 {[%clk 0:00:25.1]} 29. Nf7 {[%clk 0:00:35.9]}
29... Rhe8 {[%clk 0:00:17.7]} 30. fxg5 {[%clk 0:00:34.5]} 30... h5 {[%clk
0:00:15.2]} 31. Kf3 {[%clk 0:00:23.4]} 31... Rb7 {[%clk 0:00:14.3]} 32. Rxb7
{[%clk 0:00:23.1]} 32... Kxb7 {[%clk 0:00:15.2]} 33. Ke4 {[%clk 0:00:23.5]}
33... Rf8 {[%clk 0:00:14.4]} 34. Rf1 {[%clk 0:00:23.5]} 34... Kc6 {[%clk
0:00:14.6]} 35. Rf3 {[%clk 0:00:22]} 35... b5 {[%clk 0:00:14.3]} 36. Bd2 {[%clk
0:00:20]} 36... h4 {[%clk 0:00:14.2]} 37. Be1 {[%clk 0:00:18.1]} 37... Kd7
{[%clk 0:00:14.2]} 38. Nd6 {[%clk 0:00:15.5]} 38... Rxf3 {[%clk 0:00:13.4]} 39.
Kxf3 {[%clk 0:00:16.4]} 39... Nxe5+ {[%clk 0:00:12.9]} 40. Ke4 {[%clk
0:00:15.5]} 40... Kxd6 {[%clk 0:00:11.2]} 41. Bxh4 {[%clk 0:00:16.4]} 41... Ng6
{[%clk 0:00:11.7]} 42. Bg3+ {[%clk 0:00:16.5]} 42... Kc6 {[%clk 0:00:12.1]} 43.
h4 {[%clk 0:00:17.1]} 43... Nf8 {[%clk 0:00:11.4]} 44. h5 {[%clk 0:00:17.1]}
44... Bxg5 {[%clk 0:00:11.2]} 45. Bf4 {[%clk 0:00:17.6]} 45... Bxf4 {[%clk
0:00:10.9]} 46. Kxf4 {[%clk 0:00:18.5]} 46... Kd5 {[%clk 0:00:10.8]} 47. Kg5
{[%clk 0:00:18.9]} 47... c4 {[%clk 0:00:10.7]} 48. Kf6 {[%clk 0:00:19.2]} 48...
cxd3 {[%clk 0:00:11.1]} 49. cxd3 {[%clk 0:00:19]} 49... b4 {[%clk 0:00:10.9]}
50. Kg7 {[%clk 0:00:19.6]} 50... b3 {[%clk 0:00:07.7]} 51. h6 {[%clk 0:00:19.9]}
51... b2 {[%clk 0:00:08.6]} 52. Kxf8 {[%clk 0:00:20.8]} 52... b1=Q {[%clk
0:00:09]} 53. h7 {[%clk 0:00:21]} 53... Qb8+ {[%clk 0:00:09.9]} 54. Kg7 {[%clk
0:00:21.1]} 54... e5 {[%clk 0:00:10.8]} 55. h8=Q {[%clk 0:00:20.8]} 55... Qxh8+
{[%clk 0:00:11.2]} 56. Kxh8 {[%clk 0:00:21.7]} 56... e4 {[%clk 0:00:12]} 57. Kg7
{[%clk 0:00:22.6]} 57... exd3 {[%clk 0:00:11.9]} 58. Kf6 {[%clk 0:00:23.5]}
58... d2 {[%clk 0:00:12.8]} 59. Kf5 {[%clk 0:00:23.7]} 59... d1=Q {[%clk
0:00:13.7]} 60. Kf4 {[%clk 0:00:24.2]} 60... Qe2 {[%clk 0:00:14.2]} 61. Kg3
{[%clk 0:00:24.3]} 61... d3 {[%clk 0:00:15.1]} 0-1

[Event "Early-Titled-Tuesday-Blitz-March-19-2024"]
[Site "Chess.com"]
[Date "2024.03.19"]
[Round "4"]
[White "Kotofeyca"]
[Black "CarlosjPineror"]
[Result "0-1"]
[WhiteElo "2449"]
[BlackElo "2709"]
[TimeControl "180+1"]
[EndTime "8:40:43 PDT"]
[Termination "CarlosjPineror won on time"]

1. d4 {[%clk 0:03:00.9]} 1... Nf6 {[%clk 0:02:59.4]} 2. c4 {[%clk 0:03:00.3]}
2... e6 {[%clk 0:02:59.8]} 3. Nf3 {[%clk 0:02:59.2]} 3... Bb4+ {[%clk
0:02:59.4]} 4. Nbd2 {[%clk 0:02:58.8]} 4... O-O {[%clk 0:02:58.6]} 5. a3 {[%clk
0:02:59.1]} 5... Bxd2+ {[%clk 0:02:58.4]} 6. Bxd2 {[%clk 0:03:00]} 6... Qe7
{[%clk 0:02:59]} 7. Bg5 {[%clk 0:03:00.4]} 7... h6 {[%clk 0:02:58]} 8. Bh4
{[%clk 0:03:00.7]} 8... b6 {[%clk 0:02:57.5]} 9. e3 {[%clk 0:03:00.5]} 9... Bb7
{[%clk 0:02:57.4]} 10. Be2 {[%clk 0:02:55.8]} 10... d6 {[%clk 0:02:56.4]} 11.
O-O {[%clk 0:02:54.6]} 11... Nbd7 {[%clk 0:02:56.2]} 12. b4 {[%clk 0:02:52.4]}
12... e5 {[%clk 0:02:54.7]} 13. d5 {[%clk 0:02:47.5]} 13... g5 {[%clk
0:02:49.3]} 14. Bg3 {[%clk 0:02:47.5]} 14... Rfe8 {[%clk 0:02:45.8]} 15. Nd2
{[%clk 0:02:43.6]} 15... Nf8 {[%clk 0:02:44.7]} 16. Qc2 {[%clk 0:02:15.7]} 16...
e4 {[%clk 0:02:30.8]} 17. Nb3 {[%clk 0:02:10.4]} 17... Bc8 {[%clk 0:02:25.7]}
18. Nd4 {[%clk 0:02:09.9]} 18... Bd7 {[%clk 0:02:18.2]} 19. Rfd1 {[%clk
0:01:49.1]} 19... Ng6 {[%clk 0:02:17.9]} 20. Nb3 {[%clk 0:01:37.5]} 20... Ba4
{[%clk 0:02:07.2]} 21. Qc3 {[%clk 0:01:32.2]} 21... Bxb3 {[%clk 0:02:06.4]} 22.
Qxb3 {[%clk 0:01:31.9]} 22... h5 {[%clk 0:02:04.7]} 23. h3 {[%clk 0:01:29.3]}
23... h4 {[%clk 0:01:57.8]} 24. Bh2 {[%clk 0:01:28.7]} 24... Ne5 {[%clk
0:01:53.2]} 25. Qc3 {[%clk 0:01:21.6]} 25... Nfd7 {[%clk 0:01:49.8]} 26. Qd4
{[%clk 0:01:15.9]} 26... f5 {[%clk 0:01:49.6]} 27. Rac1 {[%clk 0:01:08]} 27...
a5 {[%clk 0:01:47.3]} 28. Bxe5 {[%clk 0:00:47.2]} 28... Qxe5 {[%clk 0:01:44.9]}
29. Qxe5 {[%clk 0:00:34.1]} 29... Rxe5 {[%clk 0:01:44.3]} 30. Ra1 {[%clk
0:00:31.8]} 30... Ree8 {[%clk 0:01:43]} 31. Rdc1 {[%clk 0:00:26.7]} 31... Reb8
{[%clk 0:01:35.9]} 32. Kf1 {[%clk 0:00:25.3]} 32... Ra7 {[%clk 0:01:34.1]} 33.
f3 {[%clk 0:00:20]} 33... Kg7 {[%clk 0:01:18.7]} 34. fxe4 {[%clk 0:00:19.9]}
34... fxe4 {[%clk 0:01:19.6]} 35. Bg4 {[%clk 0:00:20.1]} 35... Ne5 {[%clk
0:01:14.7]} 36. Be6 {[%clk 0:00:20.1]} 36... Rba8 {[%clk 0:01:07.6]} 37. b5
{[%clk 0:00:19.9]} 37... Rf8+ {[%clk 0:01:06.5]} 38. Ke2 {[%clk 0:00:19.7]}
38... Raa8 {[%clk 0:01:06.8]} 39. Rf1 {[%clk 0:00:20]} 39... Rxf1 {[%clk
0:01:02.8]} 40. Rxf1 {[%clk 0:00:19]} 40... Rf8 {[%clk 0:01:03.4]} 41. Bf5
{[%clk 0:00:15.1]} 41... Nxc4 {[%clk 0:01:02.7]} 42. a4 {[%clk 0:00:12.5]} 42...
Rf7 {[%clk 0:00:54]} 43. Bxe4 {[%clk 0:00:09.1]} 43... Rxf1 {[%clk 0:00:53.1]}
44. Kxf1 {[%clk 0:00:10]} 44... Nxe3+ {[%clk 0:00:52.9]} 45. Ke2 {[%clk
0:00:10.9]} 45... Nc4 {[%clk 0:00:51.3]} 46. Kd3 {[%clk 0:00:09.1]} 46... Ne5+
{[%clk 0:00:51.4]} 47. Kd4 {[%clk 0:00:08.6]} 47... Kf6 {[%clk 0:00:51.8]} 48.
Bc2 {[%clk 0:00:06.5]} 48... Nd7 {[%clk 0:00:50.2]} 49. Bd1 {[%clk 0:00:05.9]}
49... Nc5 {[%clk 0:00:50.6]} 50. Bc2 {[%clk 0:00:05.6]} 50... Nd7 {[%clk
0:00:40.6]} 51. Bd3 {[%clk 0:00:05.5]} 51... Ne5 {[%clk 0:00:40.9]} 52. Be2
{[%clk 0:00:05.4]} 52... Kf5 {[%clk 0:00:41]} 53. Ke3 {[%clk 0:00:03.9]} 53...
g4 {[%clk 0:00:27.5]} 54. hxg4+ {[%clk 0:00:03.3]} 54... Nxg4+ {[%clk
0:00:28.2]} 55. Kd4 {[%clk 0:00:02.5]} 55... Ne5 {[%clk 0:00:27.4]} 56. Ke3
{[%clk 0:00:02.5]} 56... Kg5 {[%clk 0:00:27]} 57. Ke4 {[%clk 0:00:02]} 57... Nd7
{[%clk 0:00:27.3]} 58. Kd4 {[%clk 0:00:01.9]} 58... Nc5 {[%clk 0:00:27.7]} 59.
Bd1 {[%clk 0:00:02.6]} 59... Kf4 {[%clk 0:00:27.8]} 60. Kc4 {[%clk 0:00:01]}
60... Kg3 {[%clk 0:00:27.4]} 61. Bf3 {[%clk 0:00:01.2]} 61... Nxa4 {[%clk
0:00:27.6]} 0-1

[Event "Early-Titled-Tuesday-Blitz-March-19-2024"]
[Site "Chess.com"]
[Date "2024.03.19"]
[Round "4"]
[White "Muracle"]
[Black "Dr_Pepper18"]
[Result "1-0"]
[WhiteElo "2552"]
[BlackElo "2350"]
[TimeControl "180+1"]
[EndTime "8:40:45 PDT"]
[Termination "Muracle won on time"]

1. d4 {[%clk 0:02:40.6]} 1... Nf6 {[%clk 0:02:58.6]} 2. Nf3 {[%clk 0:02:40]}
2... d5 {[%clk 0:02:58.5]} 3. g3 {[%clk 0:02:40.2]} 3... e6 {[%clk 0:02:53.5]}
4. Bg2 {[%clk 0:02:40.4]} 4... b5 {[%clk 0:02:53.7]} 5. O-O {[%clk 0:02:41.3]}
5... Be7 {[%clk 0:02:54.3]} 6. a4 {[%clk 0:02:42]} 6... b4 {[%clk 0:02:54.8]} 7.
c4 {[%clk 0:02:42.6]} 7... bxc3 {[%clk 0:02:55.4]} 8. bxc3 {[%clk 0:02:43.5]}
8... O-O {[%clk 0:02:55.5]} 9. Ba3 {[%clk 0:02:44]} 9... Nbd7 {[%clk 0:02:50.2]}
10. Nbd2 {[%clk 0:02:41.6]} 10... c5 {[%clk 0:02:49.6]} 11. Ne5 {[%clk
0:02:34.9]} 11... Nxe5 {[%clk 0:02:47.6]} 12. dxe5 {[%clk 0:02:35.8]} 12... Nd7
{[%clk 0:02:48.3]} 13. f4 {[%clk 0:02:24.9]} 13... Ba6 {[%clk 0:02:48]} 14. c4
{[%clk 0:02:23.9]} 14... Rb8 {[%clk 0:02:33.4]} 15. cxd5 {[%clk 0:02:22.4]}
15... exd5 {[%clk 0:02:34.3]} 16. Re1 {[%clk 0:01:16.4]} 16... d4 {[%clk
0:02:03.3]} 17. Ne4 {[%clk 0:01:14.9]} 17... Qa5 {[%clk 0:01:33.8]} 18. e3
{[%clk 0:01:08.5]} 18... d3 {[%clk 0:01:18.9]} 19. Qg4 {[%clk 0:01:08.3]} 19...
Bc8 {[%clk 0:01:01]} 20. Qh5 {[%clk 0:00:54.7]} 20... Bb7 {[%clk 0:00:56.6]} 21.
Qg4 {[%clk 0:00:51.3]} 21... Bc8 {[%clk 0:00:56.3]} 22. Qh5 {[%clk 0:00:39.3]}
22... Bb7 {[%clk 0:00:40.3]} 23. Rad1 {[%clk 0:00:39.9]} 23... Rfd8 {[%clk
0:00:34.4]} 24. Qg4 {[%clk 0:00:24.9]} 24... Qxa4 {[%clk 0:00:28.9]} 25. Rxd3
{[%clk 0:00:15.4]} 25... Bxe4 {[%clk 0:00:16.6]} 26. Bxe4 {[%clk 0:00:16.3]}
26... Qxe4 {[%clk 0:00:17.2]} 27. Rxd7 {[%clk 0:00:16.9]} 27... Rxd7 {[%clk
0:00:14.4]} 28. Qxd7 {[%clk 0:00:17.8]} 28... Bf8 {[%clk 0:00:15.3]} 29. Qxa7
{[%clk 0:00:11.8]} 29... Rb3 {[%clk 0:00:15.8]} 30. Bxc5 {[%clk 0:00:11.1]}
30... Bxc5 {[%clk 0:00:12.7]} 31. Qxc5 {[%clk 0:00:12]} 31... h6 {[%clk
0:00:13.2]} 32. Qc1 {[%clk 0:00:06]} 32... h5 {[%clk 0:00:08.1]} 33. Kf2 {[%clk
0:00:06.2]} 33... h4 {[%clk 0:00:08.1]} 34. Re2 {[%clk 0:00:05.6]} 34... h3
{[%clk 0:00:07.8]} 35. Qf1 {[%clk 0:00:05.6]} 35... Rb1 {[%clk 0:00:04.7]} 36.
Qxh3 {[%clk 0:00:04.8]} 36... Rh1 {[%clk 0:00:05.2]} 37. Qg2 {[%clk 0:00:04.6]}
37... Qb1 {[%clk 0:00:04.3]} 38. Qa8+ {[%clk 0:00:02.4]} 38... Kh7 {[%clk
0:00:04.5]} 39. Qg2 {[%clk 0:00:03.3]} 39... g6 {[%clk 0:00:04]} 40. Qh3+ {[%clk
0:00:03.7]} 40... Kg7 {[%clk 0:00:04.2]} 41. Qg2 {[%clk 0:00:04.6]} 41... Qc1
{[%clk 0:00:04.6]} 42. h4 {[%clk 0:00:03.3]} 42... Rd1 {[%clk 0:00:04]} 43. Qh3
{[%clk 0:00:01.8]} 43... Rh1 {[%clk 0:00:04.1]} 44. Qg2 {[%clk 0:00:02]} 44...
Qa1 {[%clk 0:00:04.2]} 45. Kf3 {[%clk 0:00:01.4]} 45... Qa8+ {[%clk 0:00:03.5]}
46. Kg4 {[%clk 0:00:01.7]} 46... Qa1 {[%clk 0:00:02.6]} 47. Kf3 {[%clk
0:00:02.1]} 47... Rf1+ {[%clk 0:00:02.7]} 48. Kg4 {[%clk 0:00:02.8]} 48... Qd1
{[%clk 0:00:02.2]} 49. Kh3 {[%clk 0:00:02.8]} 49... Rh1+ {[%clk 0:00:02]} 50.
Kg4 {[%clk 0:00:03.6]} 50... Qd7+ {[%clk 0:00:02.6]} 51. Kf3 {[%clk 0:00:04]}
51... Qd6 {[%clk 0:00:03.1]} 52. exd6 {[%clk 0:00:04.1]} 1-0